bitfinex/quotes_SOLUSD_20240921
["timestamp","ask_amount","ask_price","bid_price","bid_amount"]
[1726927943138,0.12549,148.58,148.53,6.3357]
[1726927943307,0.25098,148.59,148.53,6.3357]
[1726927946736,0.12549,148.59,148.53,7.68210818]
[1726927947041,0.12549,148.59,148.53,6.3357]
[1726927947632,0.2547818,148.6,148.54,17.87700039]
[1726927947839,0.2547818,148.6,148.56,16.5307]
[1726927948137,0.2497124,148.65,148.59,16.5307]
[1726927948432,0.2497124,148.65,148.6,1.34563249]
[1726927949436,0.2497124,148.65,148.59,17.87633382]
[1726927949617,0.2497124,148.65,148.59,16.5307]
[1726927952139,6.9770124,148.65,148.59,16.5307]
[1726927952523,0.2497124,148.65,148.6,1.34579741]
[1726927952930,0.2497124,148.65,148.59,16.5307]
[1726927955942,0.2497124,148.65,148.59,17.87646924]
[1726927956328,0.2497124,148.65,148.59,16.5307]
[1726927960021,0.2497124,148.65,148.59,17.87646585]
[1726927960220,0.2497124,148.65,148.59,16.5307]
[1726927966054,0.2497124,148.65,148.59,17.87645869]
[1726927967243,0.2497124,148.65,148.59,16.5307]
[1726927967423,0.2497124,148.65,148.59,17.87645984]
[1726927968353,0.2497124,148.65,148.59,16.5307]
[1726927968534,0.2497124,148.65,148.6,1.34575984]
[1726927968730,0.2497124,148.65,148.59,16.5307]
[1726927968937,0.82452229,148.64,148.59,16.5307]
[1726927969651,0.12549,148.63,148.59,16.5307]
[1726927969825,0.82452229,148.62,148.59,16.5307]
[1726927970225,0.25098,148.63,148.59,16.5307]
[1726927974661,0.82452229,148.62,148.59,16.5307]
[1726927976457,0.25098,148.61,148.59,16.5307]
[1726927976635,0.82452229,148.6,148.59,16.5307]
[1726927977236,0.25098,148.61,148.59,16.5307]
[1726927977436,6.7287,148.62,148.59,16.5307]
[1726927977437,0.12549,148.62,148.59,16.5307]
[1726927977648,0.25098,148.62,148.59,16.5307]
[1726927979960,6.7286,148.62,148.59,16.5307]
[1726927980365,30.755964,148.63,148.59,16.5307]
[1726927981155,0.82452229,148.62,148.59,16.5307]
[1726927981366,7.55312229,148.62,148.59,16.5307]
[1726927981664,6.85459,148.61,148.59,16.5307]
[1726927981957,6.98098,148.59,148.55,22.1696]
[1726927982135,7.55482229,148.58,148.55,16.0257]
[1726927982338,0.82452229,148.58,148.55,16.0257]
[1726927982542,6.98098,148.59,148.55,16.0257]
[1726927982862,0.82452229,148.58,148.55,16.0257]
[1726927983158,6.98098,148.59,148.55,16.0257]
[1726927983758,0.25098,148.59,148.55,16.0257]
[1726927983941,26.9589,148.62,148.55,16.0257]
[1726927984145,6.7289,148.62,148.55,16.0257]
[1726927984381,6.85449,148.61,148.55,16.0257]
[1726927984865,0.82452229,148.6,148.55,16.0257]
[1726927985439,6.85449,148.61,148.55,16.0257]
[1726927986361,0.12549,148.59,148.55,16.0257]
[1726927986573,0.12549,148.57,148.55,16.0257]
[1726927988464,0.12549,148.57,148.51,22.1602]
[1726927991346,0.95001229,148.57,148.51,22.1602]
[1726927991660,0.12549,148.57,148.51,22.1602]
[1726927992452,0.12549,148.57,148.55,6.94284567]
[1726927992849,0.12549,148.57,148.51,22.1602]
[1726927993152,7.68081229,148.57,148.51,22.1602]
[1726927994364,6.7327,148.53,148.51,22.1602]
[1726927994538,0.12549,148.56,148.51,22.1602]
[1726927994539,0.82452229,148.52,148.51,16.0163]
[1726927994742,0.82452229,148.52,148.49,0.2497124]
[1726927995458,1.07550229,148.54,148.49,0.2497124]
[1726928000674,0.25098,148.54,148.49,0.2497124]
[1726928001656,0.82452229,148.53,148.49,0.2497124]
[1726928002054,0.12549,148.58,148.49,0.2497124]
[1726928002252,6.7301,148.59,148.51,16.5704]
[1726928002572,21.3343,148.62,148.52,1.34647021]
[1726928003074,6.7295,148.6,148.52,1.34647021]
[1726928003247,6.7299,148.59,148.52,1.34647021]
[1726928003572,6.7299,148.59,148.51,16.5704]
[1726928003863,0.12549,148.57,148.51,16.5704]
[1726928006764,0.25098,148.58,148.51,16.5704]
[1726928009875,6.98138,148.58,148.51,16.5704]
[1726928011966,0.25098,148.58,148.51,16.5704]
[1726928012167,6.98138,148.58,148.51,16.5704]
[1726928013654,7.55542229,148.57,148.51,16.5704]
[1726928013858,0.82452229,148.57,148.51,16.5704]
[1726928015470,6.7291,148.61,148.52,7.71135541]
[1726928015670,6.7291,148.61,148.52,6.3649]
[1726928015988,6.7299,148.59,148.52,6.3649]
[1726928016679,0.82452229,148.58,148.52,6.3649]
[1726928019583,6.7295,148.6,148.52,6.3649]
[1726928019761,0.25098,148.59,148.52,6.3649]
[1726928020489,0.12549,148.59,148.52,6.3649]
[1726928021193,38.6322124,148.65,148.53,16.5704]
[1726928021372,20.4797124,148.65,148.54,13.54058893]
[1726928021569,0.2497124,148.65,148.55,28.76492972]
[1726928021881,0.2497124,148.65,148.57,6.3649]
[1726928022183,6.9770124,148.65,148.58,1.34586897]
[1726928023381,0.2497124,148.65,148.59,16.4697]
[1726928023774,0.2497124,148.65,148.6,1.34566923]
[1726928024566,0.2497124,148.65,148.61,6.3349]
[1726928024782,0.2497124,148.65,148.62,1.34553827]
[1726928024983,0.2497124,148.65,148.61,6.3349]
[1726928025189,0.2497124,148.65,148.62,1.34557863]
[1726928025669,0.2497124,148.65,148.61,7.68047786]
[1726928025868,0.2497124,148.65,148.61,6.3349]
[1726928027393,0.2497124,148.65,148.62,1.34557761]
[1726928028784,0.2497124,148.65,148.61,6.3349]
[1726928029595,0.2497124,148.65,148.62,1.34557855]
[1726928030778,0.2497124,148.65,148.61,6.3349]
[1726928032587,0.12549,148.64,148.59,16.4697]
[1726928032797,0.95001229,148.64,148.59,16.4697]
[1726928033301,0.12549,148.64,148.59,16.4697]
[1726928037294,0.95001229,148.64,148.59,16.4697]
[1726928038174,7.67761229,148.64,148.59,16.4697]
[1726928038375,0.12549,148.62,148.59,16.4697]
[1726928038574,0.95001229,148.62,148.57,6.3738]
[1726928039376,6.85409,148.62,148.57,6.3738]
[1726928039978,0.82452229,148.61,148.57,6.3738]
[1726928040178,7.55362229,148.61,148.57,6.3738]
[1726928040578,6.7291,148.61,148.57,6.3738]
[1726928040778,0.82452229,148.6,148.57,6.3738]
[1726928041877,6.7291,148.61,148.57,6.3738]
[1726928042082,0.95001229,148.6,148.57,6.3738]
[1726928042284,0.12549,148.6,148.57,6.3738]
[1726928042482,7.67951229,148.6,148.57,6.3738]
[1726928042682,7.67951229,148.6,148.55,15.7465]
[1726928042892,0.95001229,148.6,148.55,15.7465]
[1726928043497,0.12549,148.6,148.55,15.7465]
[1726928046377,6.7285,148.62,148.55,15.7465]
[1726928046581,0.12549,148.61,148.56,1.34607922]
[1726928046986,0.12549,148.62,148.56,1.34607922]
[1726928048090,0.2497124,148.65,148.56,1.34607922]
[1726928048289,0.2497124,148.65,148.58,15.1267]
[1726928048489,0.2497124,148.65,148.59,1.34581609]
[1726928049192,0.2497124,148.65,148.58,15.1267]
[1726928049505,0.12549,148.64,148.59,1.34581578]
[1726928049885,0.12549,148.64,148.58,15.1267]
[1726928057481,0.95001229,148.64,148.58,15.1267]
[1726928058627,0.12549,148.64,148.58,15.1267]
[1726928059012,0.95001229,148.64,148.58,15.1267]
[1726928060991,0.2497124,148.65,148.6,27.32122972]
[1726928061302,0.2497124,148.65,148.61,7.88977661]
[1726928061507,0.2497124,148.65,148.61,6.5443]
[1726928071002,0.2497124,148.65,148.61,7.88987546]
[1726928074622,0.2497124,148.65,148.61,20.08440518]
[1726928074830,0.2497124,148.65,148.62,28.03272972]
[1726928075015,0.2497124,148.65,148.63,1.34536711]
[1726928075526,0.2497124,148.65,148.62,15.8382]
[1726928077110,0.2497124,148.65,148.63,1.34539713]
[1726928079631,0.2497124,148.65,148.63,13.53992685]
[1726928079805,0.3471722,148.7,148.64,12.19452972]
[1726928080012,0.3471722,148.7,148.66,6.4236]
[1726928080310,0.3471722,148.7,148.67,1.34501735]
[1726928085034,0.3471722,148.7,148.66,6.4236]
[1726928085331,0.3471722,148.7,148.67,1.34498386]
[1726928086325,0.3471722,148.7,148.68,15.213]
[1726928099244,0.3471722,148.7,148.66,6.4236]
[1726928100230,0.3471722,148.7,148.64,16.0293]
[1726928100634,0.82452229,148.69,148.64,16.0293]
[1726928101027,0.3471722,148.7,148.64,16.0293]
[1726928103728,1.17169449,148.7,148.64,16.0293]
[1726928104556,0.3471722,148.7,148.65,13.53976027]
[1726928104726,0.3471722,148.7,148.67,12.19452972]
[1726928105044,0.3471722,148.7,148.68,1.34482242]
[1726928105354,0.3471722,148.7,148.69,15.3876]
[1726928106167,0.3471722,148.7,148.69,27.58212972]
[1726928106732,0.3471722,148.7,148.69,15.3876]
[1726928110939,0.3471722,148.7,148.69,16.73229356]
[1726928112056,0.3471722,148.7,148.69,15.3876]
[1726928117757,0.3471722,148.7,148.69,16.73231116]
[1726928119662,0.3471722,148.7,148.69,15.3876]
[1726928120350,0.3471722,148.7,148.69,16.73223561]
[1726928121261,0.3471722,148.7,148.69,40.50911961]
[1726928121561,0.3471722,148.7,148.69,52.70364933]
[1726928121861,0.3471722,148.7,148.69,52.95462933]
[1726928122062,0.2497124,148.74,148.72,12.19452972]
[1726928122361,0.2497124,148.74,148.73,1.34431393]
[1726928123166,0.2497124,148.74,148.72,12.19452972]
[1726928123463,0.2497124,148.74,148.73,1.34431473]
[1726928123644,0.2497124,148.74,148.71,20.0]
[1726928123969,0.2497124,148.74,148.73,0.64827295]
[1726928126871,0.2497124,148.74,148.71,0.64836013]
[1726928129977,0.2497124,148.74,148.72,1.34471439]
[1726928131349,0.2497124,148.74,148.71,0.64836013]
[1726928133472,0.2497124,148.74,148.69,15.3876]
[1726928134481,0.2497124,148.74,148.7,0.64840373]
[1726928136761,0.2497124,148.74,148.71,1.344723]
[1726928137760,0.2497124,148.74,148.7,0.64840373]
[1726928146775,0.12549,148.73,148.7,0.64840373]
[1726928148285,0.2497124,148.74,148.7,0.64840373]
[1726928150685,0.82452229,148.73,148.7,0.64840373]
[1726928150881,0.2497124,148.74,148.7,0.64840373]
[1726928151193,1.07423469,148.74,148.7,0.64840373]
[1726928153689,0.2497124,148.74,148.7,0.64840373]
[1726928155486,1.07423469,148.74,148.7,0.64840373]
[1726928155986,7.79763469,148.74,148.7,0.64840373]
[1726928158671,6.9731124,148.74,148.7,0.64840373]
[1726928159891,0.82452229,148.73,148.7,0.64840373]
[1726928160393,6.9731124,148.74,148.7,0.64840373]
[1726928160567,0.82452229,148.73,148.7,0.64840373]
[1726928160890,6.84989,148.71,148.7,0.64840373]
[1726928161087,0.12549,148.71,148.7,0.64840373]
[1726928161467,6.7241,148.72,148.7,0.64840373]
[1726928161875,0.82452229,148.71,148.7,0.64840373]
[1726928162769,7.67441229,148.71,148.7,0.64840373]
[1726928162968,7.67441229,148.71,148.65,21.6183]
[1726928162969,6.85079,148.7,148.62,16.3273]
[1726928163164,0.82452229,148.69,148.62,16.3273]
[1726928166491,0.82452229,148.69,148.63,0.63644908]
[1726928166687,0.12549,148.68,148.63,0.63644908]
[1726928166992,7.55082229,148.67,148.63,0.63644908]
[1726928167299,6.97688,148.68,148.63,0.63644908]
[1726928167875,0.82452229,148.67,148.63,0.63644908]
[1726928168788,0.82452229,148.67,148.62,16.3273]
[1726928174001,0.25098,148.68,148.62,16.3273]
[1726928174205,0.25098,148.68,148.62,17.67282052]
[1726928174409,0.12549,148.68,148.62,17.67282052]
[1726928174704,0.12549,148.68,148.62,16.3273]
[1726928175282,0.95001229,148.68,148.62,16.3273]
[1726928176105,0.12549,148.68,148.62,16.3273]
[1726928177193,0.12549,148.68,148.63,1.34540249]
[1726928177706,0.12549,148.68,148.62,16.3273]
[1726928184803,0.95001229,148.68,148.62,16.3273]
[1726928185103,0.95001229,148.68,148.61,15.2289672]
[1726928185607,7.67581229,148.68,148.61,15.2289672]
[1726928186694,6.85129,148.68,148.61,15.2289672]
[1726928187196,0.12549,148.68,148.61,15.2289672]
[1726928187393,0.12549,148.68,148.62,1.34544347]
[1726928188502,0.12549,148.68,148.61,15.2289672]
[1726928189106,0.95001229,148.68,148.61,15.2289672]
[1726928191909,0.12549,148.67,148.61,15.2289672]
[1726928192308,6.85179,148.67,148.61,15.2289672]
[1726928192508,0.82452229,148.66,148.61,15.2289672]
[1726928193819,0.12549,148.67,148.61,15.2289672]
[1726928194716,0.95001229,148.67,148.61,15.2289672]
[1726928197117,0.12549,148.67,148.61,15.2289672]
[1726928197909,0.95001229,148.67,148.61,15.2289672]
[1726928198317,0.12549,148.67,148.61,15.2289672]
[1726928200506,6.85139,148.68,148.61,15.2289672]
[1726928200507,0.12549,148.68,148.61,15.2289672]
[1726928200708,7.25255766,148.74,148.64,12.19452972]
[1726928200926,6.724,148.73,148.65,1.34508079]
[1726928201095,6.9729124,148.74,148.65,13.53961051]
[1726928201626,0.2497124,148.74,148.65,13.53961051]
[1726928201915,0.2497124,148.74,148.68,12.19452972]
[1726928202118,0.2497124,148.74,148.69,1.34472617]
[1726928203210,0.2497124,148.74,148.67,12.19452972]
[1726928203406,0.2497124,148.74,148.64,44.027864]
[1726928203619,1.07423469,148.74,148.65,12.19452972]
[1726928206121,0.12549,148.73,148.65,12.19452972]
[1726928206332,0.12549,148.73,148.64,55.97141372]
[1726928209809,0.12549,148.73,148.64,20.0]
[1726928209810,0.82452229,148.72,148.64,20.0]
[1726928210012,0.12549,148.71,148.63,15.6528]
[1726928210212,0.82452229,148.7,148.63,15.6528]
[1726928211234,0.82452229,148.69,148.63,15.6528]
[1726928211733,6.7245,148.71,148.61,15.2289672]
[1726928211734,24.027864,148.68,148.61,15.2289672]
[1726928212028,30.753764,148.68,148.61,15.2289672]
[1726928215318,24.027864,148.68,148.61,15.2289672]
[1726928216817,6.7249,148.71,148.62,1.34554754]
[1726928217133,6.7249,148.71,148.62,13.54007726]
[1726928217439,6.7249,148.71,148.61,27.42349692]
[1726928217440,6.7245,148.71,148.61,27.42349692]
[1726928217842,0.82452229,148.7,148.61,27.42349692]
[1726928218019,0.82452229,148.7,148.61,15.2289672]
[1726928218336,0.12549,148.69,148.61,15.2289672]
[1726928218641,0.25098,148.7,148.61,15.2289672]
[1726928218937,0.82452229,148.69,148.61,15.2289672]
[1726928219137,0.12549,148.68,148.61,15.2289672]
[1726928219325,0.82452229,148.67,148.61,15.2289672]
[1726928219522,0.82452229,148.69,148.61,15.2289672]
[1726928219837,0.12549,148.68,148.61,15.2289672]
[1726928220036,0.82452229,148.69,148.61,15.2289672]
[1726928220037,0.82452229,148.67,148.61,15.2289672]
[1726928220234,0.12549,148.68,148.61,15.2289672]
[1726928220536,0.82452229,148.67,148.61,15.2289672]
[1726928221117,0.12549,148.66,148.61,15.2289672]
[1726928221311,0.12549,148.64,148.61,15.2289672]
[1726928221523,0.12549,148.66,148.61,15.2289672]
[1726928221741,7.9373,148.68,148.62,1.34557466]
[1726928221933,0.12549,148.67,148.62,1.34557466]
[1726928222536,0.12549,148.67,148.61,15.2289672]
[1726928225620,0.95001229,148.67,148.61,15.2289672]
[1726928226224,0.12549,148.67,148.61,15.2289672]
[1726928227314,0.25098,148.64,148.61,15.2289672]
[1726928227519,1.07550229,148.64,148.61,15.2289672]
[1726928227718,0.25098,148.64,148.61,15.2289672]
[1726928228414,1.07550229,148.64,148.61,15.2289672]
[1726928228914,30.503684,148.66,148.61,15.2289672]
[1726928228915,0.25098,148.65,148.61,15.2289672]
[1726928229725,0.25098,148.67,148.62,1.34557569]
[1726928230121,0.25098,148.67,148.61,15.2289672]
[1726928230719,24.027864,148.68,148.62,1.34557744]
[1726928231737,8.3437,148.72,148.63,12.19452972]
[1726928231937,6.7245,148.71,148.64,1.34529297]
[1726928232115,6.7257,148.69,148.61,15.2289672]
[1726928232319,0.82452229,148.68,148.61,15.2289672]
[1726928232731,6.7257,148.69,148.61,15.2289672]
[1726928232931,24.027864,148.68,148.62,1.34552324]
[1726928233733,60.63,148.71,148.63,12.19452972]
[1726928233734,24.027864,148.71,148.63,12.19452972]
[1726928233938,24.027864,148.71,148.64,1.34524163]
[1726928234140,0.25098,148.71,148.64,13.53977135]
[1726928234334,6.7236,148.73,148.64,13.53977135]
[1726928234639,6.9728124,148.74,148.65,27.27922972]
[1726928234846,0.2497124,148.74,148.66,1.34509034]
[1726928235422,6.9728124,148.74,148.65,27.27922972]
[1726928235644,0.2497124,148.74,148.67,12.19452972]
[1726928235845,0.2497124,148.74,148.68,1.34487314]
[1726928237130,0.2497124,148.74,148.66,32.19452972]
[1726928237340,0.82452229,148.73,148.66,20.0]
[1726928237655,0.12549,148.73,148.66,20.0]
[1726928237827,0.12549,148.73,148.67,1.34499755]
[1726928238328,24.0265964,148.74,148.67,1.34499755]
[1726928238531,0.2497124,148.74,148.68,20.00580585]
[1726928241350,0.2497124,148.74,148.68,18.66092972]
[1726928241646,0.2497124,148.74,148.69,1.34481776]
[1726928241950,0.2497124,148.74,148.7,15.0847]
[1726928242148,0.2497124,148.74,148.71,1.34475339]
[1726928242954,0.2497124,148.74,148.7,27.27922972]
[1726928243250,0.2497124,148.74,148.7,15.0847]
[1726928245930,0.2497124,148.74,148.72,12.19452972]
[1726928246139,0.2497124,148.74,148.7,15.0847]
[1726928246140,0.2497124,148.74,148.73,13.53893737]
[1726928246336,0.2497124,148.74,148.73,19.77813737]
[1726928248852,0.2497124,148.74,148.73,55.45623737]
[1726928249447,0.0658759,148.76,148.75,12.19452972]
[1726928250259,0.3471722,148.79,148.75,12.19452972]
[1726928250260,0.3471722,148.79,148.76,43.776884]
[1726928250431,0.3471722,148.79,148.78,62.21061372]
[1726928250631,0.2497124,148.83,148.79,43.902374]
[1726928250834,0.2497124,148.83,148.82,12.19452972]
[1726928251035,0.2497124,148.83,148.82,32.19452972]
[1726928251459,0.2497124,148.83,148.82,71.64951372]
[1726928251965,0.2497124,148.83,148.82,47.87262972]
[1726928253438,0.2497124,148.83,148.82,35.6781]
[1726928253863,0.2497124,148.83,148.82,15.6781]
[1726928263553,0.2497124,148.83,148.78,21.8672]
[1726928264059,0.2497124,148.83,148.78,15.628]
[1726928264246,0.12549,148.82,148.78,15.628]
[1726928264564,0.12549,148.82,148.74,22.273]
[1726928264956,0.82452229,148.81,148.74,22.273]
[1726928265671,0.82452229,148.81,148.75,20.0]
[1726928266277,0.25098,148.82,148.76,1.34426654]
[1726928268168,0.2497124,148.83,148.76,1.34426654]
[1726928268555,0.2497124,148.83,148.75,38.97151826]
[1726928268755,0.2497124,148.83,148.75,20.0]
[1726928268956,0.82452229,148.82,148.75,20.0]
[1726928269852,1.07423469,148.83,148.75,20.0]
[1726928270853,0.2497124,148.83,148.75,20.0]
[1726928271079,0.2497124,148.83,148.76,1.3441094]
[1726928274455,0.2497124,148.83,148.76,23.776884]
[1726928275487,0.2497124,148.83,148.77,20.0]
[1726928276351,0.2497124,148.83,148.76,20.0]
[1726928276689,0.2497124,148.83,148.75,20.0]
[1726928279684,0.2497124,148.83,148.76,1.3440647]
[1726928279982,0.2497124,148.83,148.75,38.97151826]
[1726928280458,0.2497124,148.83,148.75,20.0]
[1726928280788,0.82452229,148.82,148.75,20.0]
[1726928280964,0.2497124,148.83,148.76,1.34411033]
[1726928281579,0.2497124,148.83,148.75,20.0]
[1726928281766,0.82452229,148.82,148.75,20.0]
[1726928281970,0.82452229,148.82,148.75,32.15063818]
[1726928282290,0.2497124,148.83,148.77,20.0]
[1726928282460,0.2497124,148.83,148.78,1.34406684]
[1726928282661,0.2497124,148.83,148.78,13.49470502]
[1726928283076,0.2497124,148.83,148.78,12.15063818]
[1726928283573,0.2497124,148.83,148.77,12.15063818]
[1726928284063,0.2497124,148.83,148.75,20.0]
[1726928286083,0.2497124,148.83,148.76,1.34411251]
[1726928286264,0.2497124,148.83,148.78,18.98051678]
[1726928287376,0.2497124,148.83,148.79,45.12065165]
[1726928287678,0.2497124,148.83,148.81,20.0]
[1726928287870,0.2497124,148.83,148.82,20.3239745]
[1726928288188,0.2497124,148.83,148.82,38.98051678]
[1726928289092,0.2497124,148.83,148.82,40.32399042]
[1726928289694,0.2497124,148.83,148.82,38.98051678]
[1726928289867,0.2497124,148.83,148.82,64.10084742]
[1726928290062,0.2497124,148.83,148.81,20.0]
[1726928293685,0.2497124,148.83,148.82,1.34344017]
[1726928294685,0.2497124,148.83,148.81,20.0]
[1726928295785,0.2497124,148.83,148.82,1.34340496]
[1726928296296,0.2497124,148.83,148.81,20.0]
[1726928299603,0.2497124,148.83,148.82,1.3436584]
[1726928302396,0.2497124,148.83,148.81,20.0]
[1726928303076,0.2497124,148.83,148.78,2.689451]
[1726928303476,0.2497124,148.83,148.76,22.4803]
[1726928303888,0.2497124,148.83,148.78,18.98051678]
[1726928304296,0.2497124,148.83,148.79,20.0]
[1726928307194,0.2497124,148.83,148.78,18.98051678]
[1726928307195,0.2497124,148.83,148.77,20.0]
[1726928308805,0.2497124,148.83,148.79,20.0]
[1726928310394,0.2497124,148.83,148.77,20.0]
[1726928310907,0.2497124,148.83,148.79,20.0]
[1726928311111,0.2497124,148.83,148.8,1.34366747]
[1726928312110,0.2497124,148.83,148.81,23.776884]
[1726928312288,0.2497124,148.83,148.81,18.98051678]
[1726928312813,0.2497124,148.83,148.82,20.0]
[1726928314211,0.2497124,148.83,148.8,20.0]
[1726928315303,0.2497124,148.83,148.81,20.32404217]
[1726928315710,0.2497124,148.83,148.82,20.0]
[1726928316211,0.2497124,148.83,148.82,21.34343624]
[1726928317192,0.2497124,148.83,148.82,61.60180024]
[1726928317394,0.0768094,148.83,148.82,61.60180024]
[1726928318607,0.0658759,148.85,148.84,44.027864]
[1726928318907,0.0658759,148.85,148.84,63.00838078]
[1726928319292,0.0658759,148.85,148.84,64.35160776]
[1726928320995,0.0658759,148.85,148.84,64.92879712]
[1726928323305,23.99244652,148.88,148.86,20.0]
[1726928323611,23.99244652,148.88,148.87,20.57707304]
[1726928324193,23.99244652,148.88,148.87,0.57707304]
[1726928327729,23.99244652,148.88,148.87,20.57707304]
[1726928328411,23.99244652,148.88,148.87,0.57707304]
[1726928330208,23.99244652,148.88,148.87,20.57707304]
[1726928331406,23.99244652,148.88,148.87,0.57707304]
[1726928332830,23.99244652,148.88,148.83,20.0]
[1726928333213,23.99244652,148.88,148.82,33.52231623]
[1726928334716,23.99244652,148.88,148.83,20.0]
[1726928336234,0.82452229,148.87,148.8,23.776884]
[1726928336537,0.82452229,148.87,148.81,0.57730572]
[1726928337606,0.82452229,148.87,148.81,20.57730572]
[1726928337811,6.89062229,148.87,148.82,0.57726693]
[1726928341348,6.0661,148.87,148.82,0.57726693]
[1726928341544,6.0661,148.87,148.82,20.57726693]
[1726928341835,6.89062229,148.87,148.82,20.57726693]
[1726928342339,6.89062229,148.87,148.82,0.57726693]
[1726928343250,0.25098,148.86,148.82,0.57726693]
[1726928348132,6.0661,148.87,148.82,0.57726693]
[1726928348648,0.82452229,148.86,148.82,0.57726693]
[1726928348950,6.0661,148.87,148.82,0.57726693]
[1726928349138,0.82452229,148.86,148.82,0.57726693]
[1726928350142,6.0661,148.87,148.82,0.57726693]
[1726928350652,0.82452229,148.86,148.82,0.57726693]
[1726928350849,6.0661,148.87,148.82,0.57726693]
[1726928354936,30.746064,148.85,148.82,0.57726693]
[1726928355130,0.25098,148.83,148.74,28.30512935]
[1726928355335,0.82452229,148.82,148.74,28.30512935]
[1726928355557,0.82452229,148.82,148.75,12.13133243]
[1726928355953,0.25098,148.83,148.75,12.13133243]
[1726928356150,22.5935,148.84,148.78,32.13133243]
[1726928356151,2.5935,148.84,148.78,32.13133243]
[1726928356349,20.0,148.86,148.79,13.47518801]
[1726928356547,26.58594652,148.88,148.79,12.13133243]
[1726928358432,0.82452229,148.86,148.79,12.13133243]
[1726928358627,26.71143652,148.88,148.8,0.57734452]
[1726928360057,0.82452229,148.86,148.8,0.57734452]
[1726928360543,0.25098,148.86,148.8,0.57734452]
[1726928361333,0.82452229,148.85,148.8,0.57734452]
[1726928362463,0.82452229,148.84,148.8,0.57734452]
[1726928363345,6.0661,148.87,148.8,12.70867695]
[1726928363547,6.0661,148.87,148.81,1.34374201]
[1726928363758,6.0661,148.87,148.8,0.57734452]
[1726928364237,6.0661,148.87,148.8,20.57734452]
[1726928365268,6.0661,148.87,148.8,0.57734452]
[1726928365441,0.82452229,148.86,148.8,0.57734452]
[1726928365641,0.82452229,148.86,148.8,20.57734452]
[1726928366764,6.0661,148.87,148.8,20.57734452]
[1726928367063,0.82452229,148.86,148.8,20.57734452]
[1726928368667,6.0661,148.87,148.8,20.57734452]
[1726928369064,0.82452229,148.86,148.8,0.57734452]
[1726928369262,0.12549,148.85,148.8,0.57734452]
[1726928369569,24.027864,148.86,148.8,0.57734452]
[1726928370466,6.0661,148.87,148.8,0.57734452]
[1726928370637,6.0661,148.87,148.81,1.34379669]
[1726928371250,26.71143652,148.88,148.82,1.34379273]
[1726928373179,26.71143652,148.88,148.8,48.04337695]
[1726928373350,0.82452229,148.87,148.8,48.04337695]
[1726928373553,0.82452229,148.87,148.8,35.91204452]
[1726928375370,26.71143652,148.88,148.8,35.91204452]
[1726928375556,0.82452229,148.87,148.8,35.91204452]
[1726928377368,0.25098,148.87,148.8,35.91204452]
[1726928378377,0.82452229,148.86,148.8,35.91204452]
[1726928379470,0.25098,148.87,148.8,35.91204452]
[1726928381173,0.82452229,148.86,148.8,35.91204452]
[1726928382361,0.12549,148.85,148.8,35.91204452]
[1726928383664,0.12549,148.86,148.8,35.91204452]
[1726928383881,24.027864,148.87,148.8,35.91204452]
[1726928387460,26.58594652,148.88,148.81,1.34389347]
[1726928388778,0.12549,148.87,148.81,1.34389347]
[1726928389860,0.12549,148.87,148.8,48.04337695]
[1726928391064,0.12549,148.87,148.81,1.34374974]
[1726928391568,0.12549,148.87,148.8,48.04337695]
[1726928393184,0.12549,148.87,148.81,1.34374978]
[1726928393371,0.12549,148.87,148.8,48.04337695]
[1726928393681,0.95001229,148.87,148.8,35.91204452]
[1726928395578,0.12549,148.86,148.8,35.91204452]
[1726928395778,0.82452229,148.85,148.8,35.91204452]
[1726928396690,23.902374,148.87,148.81,1.34389702]
[1726928396984,0.12549,148.87,148.81,1.34389702]
[1726928397189,0.12549,148.87,148.8,48.04337695]
[1726928397370,0.12549,148.87,148.8,35.91204452]
[1726928397767,0.95001229,148.87,148.8,35.91204452]
[1726928399786,0.12549,148.86,148.8,35.91204452]
[1726928401401,0.25098,148.87,148.81,1.34382225]
[1726928401587,0.12549,148.87,148.81,1.34382225]
[1726928401790,23.99244652,148.88,148.82,12.13133243]
[1726928402087,23.99244652,148.88,148.85,20.0]
[1726928402273,23.99244652,148.88,148.84,15.7618]
[1726928403780,0.82452229,148.87,148.81,32.13133243]
[1726928403970,23.99244652,148.88,148.81,20.0]
[1726928404775,0.82452229,148.87,148.81,20.0]
[1726928405390,0.82452229,148.87,148.8,22.24134452]
[1726928406786,0.82452229,148.87,148.81,20.0]
[1726928407890,23.99244652,148.88,148.81,20.0]
[1726928408195,0.25098,148.87,148.81,20.0]